bitfinex/quotes_ETHUSD_20260304
["timestamp","ask_amount","ask_price","bid_price","bid_amount"]
[1772650104604,1.16117518,2153.0,2152.2,0.001]
[1772650104792,1.74979969,2153.1,2152.2,0.001]
[1772650104993,1.39,2153.2,2152.2,0.6057534]
[1772650105201,2.5510792,2153.2,2152.2,0.6057534]
[1772650105376,0.58868317,2153.0,2152.2,0.001]
[1772650106207,0.61193161,2153.2,2152.4,0.001]
[1772650106379,3.19515433,2153.1,2152.4,0.001]
[1772650106578,0.61193161,2153.2,2152.4,0.001]
[1772650106889,1.77300308,2153.2,2152.4,0.001]
[1772650107079,0.61193161,2153.1,2152.4,0.001]
[1772650108092,0.61193161,2153.4,2152.4,0.58121171]
[1772650108402,3.19429179,2153.3,2152.4,0.58121171]
[1772650108603,0.61193161,2153.4,2152.4,0.58121171]
[1772650108923,3.19426849,2153.3,2152.5,1.16144018]
[1772650109091,1.77292833,2153.4,2152.5,1.16144018]
[1772650109291,3.19369374,2153.3,2152.5,1.16144018]
[1772650109493,0.61193161,2153.3,2152.5,1.16144018]
[1772650109930,0.61193161,2153.6,2152.6,0.58021171]
[1772650110585,1.16081647,2153.7,2152.6,0.58021171]
[1772650110586,3.8054755,2153.5,2152.6,0.58021171]
[1772650110812,0.61193161,2153.5,2152.7,1.16133228]
[1772650111012,1.77470485,2153.8,2152.8,0.58021171]
[1772650111227,3.1931707,2153.7,2152.8,0.58021171]
[1772650111432,0.61193161,2153.7,2152.8,0.58021171]
[1772650111631,0.002,2153.8,2152.9,0.58021171]
[1772650112631,1.16273938,2153.8,2152.9,0.58021171]
[1772650112808,0.61393161,2153.8,2153.0,1.16117045]
[1772650113127,0.61393161,2153.8,2152.9,1.74139385]
[1772650113307,0.61393161,2153.8,2152.9,1.16118214]
[1772650113713,0.61393161,2153.8,2152.9,1.74139385]
[1772650114322,0.002,2153.8,2153.0,0.58021171]
[1772650114845,0.002,2153.8,2153.1,1.74132823]
[1772650115206,0.002,2153.8,2153.1,1.16111652]
[1772650115822,0.002,2153.8,2153.2,0.58021171]
[1772650116023,0.002,2154.0,2153.1,1.16111652]
[1772650116024,0.002,2154.0,2153.3,0.58021171]
[1772650116943,0.002,2154.0,2153.5,0.58021171]
[1772650117435,0.002,2154.3,2153.5,0.58021171]
[1772650118520,0.002,2154.3,2153.5,1.76521171]
[1772650118744,0.002,2153.6,2153.5,1.76521171]
[1772650119067,0.002,2154.3,2153.3,4.64382067]
[1772650119252,0.002,2153.8,2153.3,4.64382067]
[1772650119567,0.002,2154.1,2153.4,0.58021171]
[1772650119863,0.002,2154.1,2153.3,4.64382067]
[1772650120533,0.61393161,2154.1,2153.3,4.64382067]
[1772650121545,1.16063138,2154.0,2153.3,4.64382067]
[1772650122150,0.61193161,2153.9,2153.2,1.185]
[1772650122385,0.61193161,2153.9,2153.2,2.34606139]
[1772650124270,1.16073915,2153.8,2153.2,2.34606139]
[1772650125360,1.16262552,2154.1,2153.2,2.9262731]
[1772650125869,1.77455713,2154.1,2153.2,2.9262731]
[1772650126475,1.77455713,2154.1,2153.3,0.58021171]
[1772650126476,0.002,2154.1,2153.3,0.58021171]
[1772650126675,0.002,2154.3,2153.3,0.58021171]
[1772650127596,0.002,2154.3,2153.5,0.58021171]
[1772650127809,0.002,2154.3,2153.7,0.58021171]
[1772650128095,0.002,2154.5,2153.9,0.58021171]
[1772650128462,0.002,2154.5,2154.1,0.57947667]
[1772650128770,0.002,2154.5,2154.2,1.187]
[1772650129083,0.002,2154.5,2154.2,1.76647667]
[1772650129296,0.002,2154.5,2154.3,0.57947667]
[1772650129459,0.002,2154.7,2154.3,0.57947667]
[1772650130283,0.002,2154.7,2154.2,1.187]
[1772650130491,0.002,2154.7,2154.2,2.34848237]
[1772650130666,0.57297501,2154.7,2153.7,1.16073915]
[1772650131182,0.57297501,2154.5,2153.7,1.16073915]
[1772650132371,0.57297501,2154.5,2153.5,4.64353316]
[1772650132562,0.57097501,2154.4,2153.5,5.22300983]
[1772650132765,1.1624023,2154.5,2153.5,5.22300983]
[1772650133390,1.1624023,2154.5,2153.6,0.57947667]
[1772650133788,0.002,2154.5,2153.6,0.57947667]
[1772650133990,1.16236255,2154.5,2153.6,0.57947667]
[1772650134395,0.002,2154.5,2153.6,0.57947667]
[1772650134602,0.002,2154.5,2153.7,1.74026972]
[1772650134921,0.002,2154.5,2153.8,0.57947667]
[1772650135120,0.002,2154.5,2153.7,1.16079305]
[1772650135121,0.002,2154.7,2153.7,1.16079305]
[1772650135337,0.002,2154.7,2153.8,0.57947667]
[1772650136604,0.002,2154.7,2154.0,0.57947667]
[1772650136810,0.002,2154.7,2154.1,1.76747667]
[1772650138918,0.002,2154.7,2154.2,1.16052362]
[1772650141226,0.002,2154.7,2154.1,4.64209451]
[1772650141713,0.002,2154.7,2154.2,0.57947667]
[1772650142834,0.002,2154.7,2154.3,0.001]
[1772650143038,0.002,2154.7,2154.3,0.58047667]
[1772650143216,0.002,2154.7,2154.4,2.34941589]
[1772650145342,0.002,2155.2,2154.5,0.57947667]
[1772650145518,0.002,2155.4,2154.5,0.57947667]
[1772650146023,1.16188333,2155.4,2154.5,0.57947667]
[1772650147109,1.73285834,2155.4,2154.5,0.57947667]
[1772650147305,1.73285834,2155.4,2154.6,1.16030817]
[1772650147306,0.57097501,2155.3,2154.6,1.16030817]
[1772650147813,0.57097501,2155.3,2154.5,2.34932769]
[1772650148530,0.57097501,2155.3,2154.5,2.92880436]
[1772650148736,0.002,2155.4,2154.6,0.57947667]
[1772650149156,0.002,2155.6,2154.6,0.57947667]
[1772650149315,0.002,2155.6,2154.8,0.57947667]
[1772650149520,0.57297501,2155.9,2154.8,0.57947667]
[1772650149755,0.002,2155.9,2154.8,0.57947667]
[1772650149951,1.73026658,2156.5,2155.0,0.57947667]
[1772650150242,1.73026658,2156.5,2155.2,0.57947667]
[1772650151544,0.57097501,2156.5,2155.4,0.57947667]
[1772650151856,1.73012199,2156.8,2155.4,0.57947667]
[1772650152220,0.57097501,2156.7,2155.4,0.57947667]
[1772650152635,1.15907088,2156.9,2155.4,0.57947667]
[1772650152822,1.73004589,2156.9,2155.4,0.57947667]
[1772650153734,0.57097501,2156.8,2155.6,0.57947667]
[1772650154052,0.57097501,2156.8,2155.5,1.1598237]
[1772650154053,0.57097501,2156.8,2155.8,0.57947667]
[1772650155214,0.57097501,2157.0,2155.8,0.57947667]
[1772650155844,0.002,2156.5,2155.9,1.15960851]
[1772650156045,0.57297501,2156.5,2155.9,2.34960851]
[1772650156264,0.002,2156.5,2155.9,2.34960851]
[1772650156662,0.002,2156.5,2156.0,0.57947667]
[1772650157954,0.002,2156.5,2156.1,1.15950095]
[1772650158339,0.002,2156.5,2156.1,1.73897762]
[1772650159662,0.002,2156.5,2156.0,1.15951601]
[1772650159863,0.62215792,2156.5,2155.8,1.19]
[1772650160062,0.002,2156.5,2155.9,1.15960851]
[1772650160564,0.002,2156.5,2155.9,1.78206782]
[1772650160769,0.002,2156.5,2156.0,0.62245931]
[1772650161268,0.002,2156.7,2156.1,0.62245931]
[1772650161563,0.002,2156.7,2156.2,0.62245931]
[1772650162287,0.002,2156.7,2156.4,0.62245931]
[1772650162453,0.002,2156.7,2156.5,1.19]
[1772650163052,0.002,2156.7,2156.2,4.63757362]
[1772650163053,0.62215792,2156.7,2156.2,1.15941293]
[1772650163366,0.62215792,2156.7,2156.2,2.34941293]
[1772650163574,0.002,2156.7,2156.2,2.34941293]
[1772650163983,0.002,2156.7,2156.1,1.15946291]
[1772650164282,0.002,2156.7,2156.2,1.19]
[1772650164580,0.002,2156.7,2156.3,1.1593934]
[1772650165161,0.002,2157.0,2156.4,0.62245931]
[1772650166588,0.002,2157.0,2156.5,1.15928587]
[1772650166788,0.57475401,2157.0,2156.3,1.15934929]
[1772650166995,0.002,2157.0,2156.4,0.61879121]
[1772650168474,0.002,2156.5,2156.3,1.15934929]
[1772650168885,0.002,2156.5,2156.4,1.191]
[1772650169393,0.57475401,2156.5,2156.1,1.16049907]
[1772650169890,0.002,2156.5,2156.1,1.16049907]
[1772650171977,0.002,2156.5,2156.2,1.191]
[1772650172181,0.57475401,2156.5,2156.2,1.191]
[1772650172590,0.002,2156.5,2156.2,1.191]
[1772650172779,0.002,2156.5,2156.3,1.1593934]
[1772650175198,0.002,2156.5,2156.3,1.192]
[1772650176900,0.002,2156.5,2156.3,2.35137189]
[1772650177769,0.57475401,2157.0,2156.3,2.9701631]
[1772650177998,0.57475401,2157.0,2156.3,2.35137189]
[1772650178402,0.002,2157.0,2156.4,1.81279121]
[1772650178586,0.002,2157.0,2156.5,0.61879121]
[1772650179015,0.57475401,2157.0,2156.6,1.15923212]
[1772650179218,0.002,2157.0,2156.6,2.35323212]
[1772650179812,0.57475401,2157.0,2156.6,2.35323212]
[1772650181030,0.57475401,2157.0,2156.3,1.1593934]
[1772650181198,0.57475401,2157.0,2156.7,1.195]
[1772650181600,0.002,2156.8,2156.7,1.195]
[1772650183446,0.002,2156.8,2156.3,4.63853314]
[1772650183645,0.002,2156.8,2156.4,2.35533964]
[1772650185261,3.29824607,2157.7,2156.7,0.61879121]
[1772650185262,0.57275401,2157.7,2156.7,0.61879121]
[1772650185447,0.57275401,2158.0,2156.9,0.61879121]
[1772650185848,0.57275401,2158.3,2156.9,0.61879121]
[1772650186045,3.20286335,2158.2,2156.9,0.61879121]
[1772650186244,0.57275401,2158.7,2157.1,0.61879121]
[1772650186448,3.77070654,2158.6,2157.1,0.61879121]
[1772650186764,1.00489035,2158.5,2157.2,0.61879121]
[1772650186930,0.57275401,2158.5,2157.2,0.61879121]
[1772650187130,0.57275401,2158.5,2157.3,1.15885597]
[1772650187523,0.57275401,2158.3,2157.3,1.15885597]
[1772650187734,0.57275401,2158.1,2157.3,1.15885597]
[1772650188126,0.57275401,2158.1,2157.3,2.35685597]
[1772650189761,0.5675316,2158.5,2157.3,2.94802689]
[1772650190180,0.5675316,2158.5,2157.4,0.59117092]
[1772650190553,0.5675316,2158.9,2157.4,0.59117092]
[1772650190757,0.5675316,2158.7,2157.4,0.59117092]
[1772650191180,0.5675316,2159.2,2157.7,0.59117092]
[1772650191386,0.5675316,2159.2,2157.9,0.59117092]
[1772650192047,0.5675316,2159.2,2158.0,0.65670692]
[1772650193360,0.5675316,2159.2,2158.1,1.74959731]
[1772650193558,0.5675316,2159.1,2158.1,1.15842639]
[1772650194275,0.5675316,2159.1,2158.0,4.63370557]
[1772650194276,0.5675316,2159.1,2158.0,1.15844392]
[1772650194882,0.002,2158.5,2158.0,1.15844392]
[1772650196483,0.002,2158.7,2158.1,0.59117092]
[1772650196778,0.002,2158.7,2158.0,1.15844392]
[1772650197655,0.002,2158.7,2158.0,1.74961484]
[1772650198182,0.002,2158.7,2158.1,0.59117092]
[1772650198369,0.002,2158.7,2158.2,0.59117092]
[1772650199584,0.002,2158.7,2158.3,1.74948996]
[1772650200381,0.002,2158.7,2158.4,1.2]
[1772650200985,0.5675316,2159.8,2158.5,0.59117092]
[1772650201186,0.5675316,2160.1,2158.5,0.59117092]
[1772650201486,0.5675316,2159.9,2158.6,1.74932898]
[1772650201652,0.5675316,2159.8,2158.7,1.2]
[1772650202955,0.5675316,2159.8,2158.6,1.74932898]
[1772650203174,0.5675316,2159.8,2158.7,1.201]
[1772650203556,0.5675316,2159.6,2158.8,1.15805076]
[1772650205078,0.5675316,2159.6,2158.5,1.15821172]
[1772650205482,1.15767538,2159.5,2158.5,1.15821172]
[1772650205788,0.5675316,2159.4,2158.5,1.15821172]
[1772650206494,0.5675316,2159.4,2158.4,2.35922621]
[1772650207582,0.5675316,2159.2,2158.4,2.35922621]
[1772650208821,0.5675316,2159.2,2158.7,0.001]
[1772650208988,0.5675316,2159.2,2158.4,1.15822621]
[1772650209163,0.5675316,2159.2,2158.5,0.001]
[1772650209796,0.56436396,2159.1,2158.5,0.001]
[1772650212360,0.56436396,2159.0,2158.5,0.001]
[1772650214091,0.56436396,2158.9,2158.5,0.001]
[1772650217924,0.56436396,2158.8,2158.5,0.001]
[1772650218213,0.56436396,2158.8,2158.2,0.001]
[1772650218610,0.56436396,2158.8,2158.2,1.15936041]
[1772650218787,4.63171054,2159.1,2158.3,1.203]
[1772650218788,0.57691397,2159.1,2158.3,1.203]
[1772650219110,0.43207508,2159.0,2158.3,1.203]
[1772650219418,0.57691397,2159.1,2158.3,1.203]
[1772650219605,0.43236979,2159.0,2158.3,1.203]
[1772650219805,0.57691397,2159.1,2158.3,1.203]
[1772650220131,1.00928376,2159.0,2158.4,1.15826538]
[1772650220425,0.14948499,2160.1,2158.5,0.54661847]
[1772650220426,0.57691397,2159.5,2158.5,0.54661847]
[1772650220591,0.43251892,2159.4,2158.5,0.54661847]
[1772650220790,0.57691397,2159.5,2158.5,0.54661847]
[1772650221003,0.43251892,2159.4,2158.5,0.54661847]
[1772650221196,0.57691397,2159.5,2158.5,0.54661847]
[1772650221418,0.43249415,2159.4,2158.5,0.54661847]
[1772650221716,0.57691397,2159.5,2158.5,0.54661847]
[1772650222412,0.57691397,2159.5,2158.6,1.70477653]
[1772650223317,0.57691397,2159.5,2158.6,1.70577653]
[1772650224421,0.57691397,2159.5,2158.8,1.15805076]
[1772650224798,0.002,2159.9,2159.0,0.54661847]
[1772650226504,0.53370642,2160.6,2159.2,0.5682608]
[1772650226719,0.53370642,2160.4,2159.2,0.5682608]
[1772650227548,0.52121264,2160.9,2159.3,0.5682608]
[1772650227745,0.52121264,2160.9,2159.8,0.6337968]
[1772650227910,0.52121264,2160.9,2160.2,0.5682608]
[1772650228613,0.4749142,2160.9,2160.3,1.72550747]
[1772650228931,0.4749142,2160.9,2160.4,0.5682608]
[1772650230928,0.53370642,2163.3,2162.2,0.24127531]
[1772650232439,0.53370642,2163.3,2162.2,0.12801606]
[1772650232635,0.53370642,2163.1,2162.2,0.12801606]
[1772650233140,0.53370642,2163.1,2162.2,1e-08]
[1772650233740,0.53370642,2162.9,2162.2,1e-08]
[1772650234618,0.53370642,2162.7,2162.2,1e-08]
[1772650235015,0.53370642,2162.7,2160.7,0.3077384]
[1772650235210,0.53370642,2162.5,2160.9,1.034]
[1772650235933,0.53370642,2162.3,2160.7,1.3547384]
[1772650236317,1.50302099,2162.6,2160.7,1.047]
[1772650236318,0.53370642,2162.1,2160.7,1.047]
[1772650236935,0.53370642,2161.9,2160.7,1.047]
[1772650237130,0.53370642,2161.8,2160.7,1.047]
[1772650237836,0.53370642,2161.8,2160.3,0.30489737]
[1772650237837,0.53370642,2161.8,2160.4,1.15719311]
[1772650238808,0.53370642,2161.8,2160.4,1.45645704]
[1772650239135,0.53370642,2161.8,2160.5,0.29926393]
[1772650239136,1.69019055,2161.8,2160.5,0.29926393]
[1772650239342,0.53370642,2161.7,2160.5,0.29926393]
[1772650239543,0.53370642,2161.7,2160.4,1.15719311]
[1772650240220,0.53370642,2161.7,2160.1,8.5698165]
[1772650240420,0.53370642,2161.7,2160.2,4.0]
[1772650240644,0.53370642,2161.3,2160.2,4.0]
[1772650240830,0.53370642,2161.3,2160.0,0.1]
[1772650241010,0.53370642,2161.1,2160.0,0.1]
[1772650241220,0.53370642,2161.0,2159.0,0.39050926]
[1772650241433,0.53370642,2160.8,2159.2,4.0]
[1772650242818,0.53370642,2160.8,2159.0,0.39050926]
[1772650243015,0.53370642,2160.8,2159.1,1.15788986]
[1772650243016,0.53370642,2160.5,2159.1,1.15788986]
[1772650243525,0.53370642,2160.5,2159.1,1.5449667]
[1772650244337,0.53370642,2160.5,2159.2,0.38392244]
[1772650244843,0.53370642,2160.5,2158.9,1.15799712]
[1772650245144,0.53370642,2160.3,2159.0,5.15792028]
[1772650245442,0.53370642,2160.3,2159.0,1.15792028]
[1772650246023,0.53370642,2160.3,2159.1,0.38078882]
[1772650246953,1.15708599,2160.6,2159.1,0.38078882]
[1772650247332,1.15708599,2160.6,2159.3,0.37458315]
[1772650248951,1.68354062,2160.6,2159.3,0.37458315]
[1772650249648,1.68354062,2160.6,2159.4,1.52485619]
[1772650249848,0.52645463,2160.6,2159.4,1.15772899]
[1772650250047,1.15692535,2160.9,2159.6,0.36410984]
[1772650250257,0.52645463,2161.5,2159.6,0.36410984]
[1772650250666,0.52645463,2161.5,2159.8,0.36410984]
[1772650251755,0.52645463,2161.5,2160.3,0.3611119]
[1772650251958,0.52645463,2161.5,2160.4,0.3611119]
[1772650252141,1.68306649,2161.5,2160.4,0.3611119]
[1772650252936,0.52645463,2161.4,2160.3,1.17]
[1772650253663,0.52645463,2161.4,2160.0,4.0]
[1772650253664,0.52645463,2161.2,2160.0,4.0]
[1772650253979,0.52645463,2161.2,2159.5,1.15767538]
[1772650255668,0.52645463,2161.0,2159.4,4.63070155]
[1772650257666,1.15692535,2160.9,2159.4,4.63070155]
[1772650257871,0.52645463,2160.8,2159.4,4.63070155]
[1772650258788,0.52645463,2160.8,2159.5,0.34071227]
[1772650259857,1.15703244,2160.7,2159.6,1.49548439]
[1772650260358,1.15703244,2160.7,2159.7,0.33503078]
[1772650261406,1.68348707,2160.7,2159.7,0.33503078]
[1772650261683,0.52645463,2160.6,2159.4,4.63085602]
[1772650261860,0.52645463,2160.4,2159.4,1.15772899]
[1772650262480,0.52645463,2160.4,2159.3,1.177]
[1772650262679,0.52645463,2160.4,2159.3,0.001]
[1772650262883,1.15713955,2160.5,2158.7,0.001]
[1772650262884,0.52645463,2160.2,2158.7,1.15910302]
[1772650263097,0.52645463,2160.1,2158.7,1.15910302]
[1772650263762,0.52645463,2159.9,2158.7,1.15910302]
[1772650264063,0.52645463,2159.7,2158.7,0.001]
[1772650264981,0.52645463,2159.7,2159.3,0.001]
[1772650265389,0.52645463,2159.7,2158.7,0.001]
[1772650265685,0.52645463,2159.7,2159.0,0.001]
[1772650265889,0.52645463,2159.5,2159.0,0.001]
[1772650266663,0.52645463,2159.5,2158.7,0.001]
[1772650266868,1.15762178,2159.6,2158.7,0.001]
[1772650266869,0.52645463,2159.3,2158.7,0.001]
[1772650267187,1.68407641,2159.6,2158.7,0.001]
[1772650267391,0.52645463,2159.5,2158.7,0.001]
[1772650267959,1.68418362,2159.4,2158.7,0.001]
[1772650268163,0.52645463,2159.3,2158.7,0.001]
[1772650268782,0.02645463,2159.3,2158.7,0.001]
[1772650270171,1.68429086,2159.2,2158.7,0.001]
[1772650271696,0.52645463,2159.1,2158.7,0.001]
[1772650272198,1.15794349,2159.0,2158.7,0.001]
[1772650274098,4.63177396,2159.1,2158.7,0.001]
[1772650274099,1.15778261,2159.3,2158.7,0.001]
[1772650276301,0.52645463,2159.2,2158.5,0.001]
[1772650276692,1.15778261,2159.3,2158.5,0.001]
[1772650276887,4.63091895,2159.4,2158.5,0.001]
[1772650277501,0.52645463,2159.3,2158.5,0.001]
[1772650278873,1.15783623,2159.2,2158.7,0.001]
[1772650280606,1.65817531,2159.2,2158.7,0.001]
[1772650280908,1.15794349,2159.0,2158.7,0.001]
[1772650281903,0.50033908,2159.5,2158.7,0.001]
[1772650282200,0.50033908,2159.4,2158.7,0.001]
[1772650283091,1.15778261,2159.3,2158.7,0.001]
[1772650283298,0.50033908,2159.2,2158.7,0.001]
[1772650285504,1.65822894,2159.1,2158.7,0.001]
[1772650286005,1.68673909,2159.4,2158.7,0.001]
[1772650286195,4.6304447,2159.7,2158.7,0.001]
[1772650286196,1.68656374,2159.7,2158.7,0.26603181]
[1772650286406,1.6863883,2160.0,2158.7,0.26603181]
[1772650286582,0.52896961,2159.9,2158.7,0.26603181]
[1772650287611,1.15751458,2159.8,2158.8,1.42251616]
[1772650289507,1.15751458,2159.8,2158.9,0.2633374]
[1772650289701,1.15751458,2159.8,2159.0,1.15794349]
[1772650290105,1.15751458,2159.8,2159.0,1.42073016]
[1772650291613,2.20758532,2160.4,2159.0,1.42073016]
[1772650291614,0.002,2160.5,2159.5,0.26284984]
[1772650291983,0.002,2160.1,2159.5,0.26284984]
[1772650292613,0.002,2160.5,2159.8,0.26030493]
[1772650292815,0.002,2160.5,2160.0,0.26030493]
[1772650293001,0.002,2160.5,2160.0,2.43404551]
[1772650293206,0.002,2160.5,2160.0,0.26030493]
[1772650293617,1.68576792,2161.2,2160.3,1.15724667]
[1772650293932,1.15679831,2161.2,2160.3,1.4170105]
[1772650294085,0.52896961,2161.1,2159.9,4.88894864]
[1772650294289,0.52896961,2161.1,2159.8,2.34651323]
[1772650294718,0.52896961,2161.1,2159.9,4.0]
[1772650295710,1.68584142,2161.0,2159.9,0.25869959]
[1772650296091,0.52896961,2160.9,2159.8,1.15751323]
[1772650296316,0.52896961,2160.9,2159.7,1.186]
[1772650297396,0.52896961,2160.9,2159.7,1.44427194]
[1772650298017,1.6859485,2160.8,2159.8,1.15751458]
[1772650299223,0.52896961,2160.7,2159.8,1.15751458]
[1772650300326,1.15708599,2160.6,2159.8,1.15751458]
[1772650301828,0.52896961,2160.5,2159.7,1.186]
[1772650301994,0.52896961,2160.5,2159.3,1.15778261]
[1772650302200,0.52896961,2160.3,2159.5,1.15767538]
[1772650302727,0.52896961,2160.3,2159.4,8.63070155]
[1772650302728,0.52896961,2160.3,2159.4,1.15771847]
[1772650302935,0.52896961,2160.3,2159.2,4.8867348]
[1772650303302,0.52896961,2160.3,2159.4,0.001]
[1772650304229,0.52896961,2160.1,2159.4,0.001]
[1772650306333,1.68637701,2160.0,2159.4,0.001]
[1772650307232,0.52896961,2159.9,2159.4,0.001]
[1772650307933,0.52896961,2159.9,2159.1,0.001]
[1772650308432,0.5066866,2159.7,2159.1,0.001]
[1772650310540,0.5066866,2160.3,2159.1,0.25082223]
[1772650311333,4.62879798,2160.4,2159.1,0.25082223]
[1772650311334,1.15719311,2160.4,2159.1,0.25082223]
[1772650312529,1.66387971,2160.4,2159.1,0.25082223]
[1772650313040,0.5066866,2160.3,2159.2,1.40627354]
[1772650313252,0.5066866,2160.3,2159.2,5.40627354]
[1772650313746,0.5066866,2160.3,2159.2,1.40627354]
[1772650314447,0.5066866,2160.3,2159.2,1.15783623]
[1772650315440,0.5066866,2160.1,2159.1,0.001]
[1772650317416,0.5066866,2159.9,2159.1,0.001]
[1772650318337,0.5066866,2159.9,2159.4,0.001]
[1772650318551,0.5066866,2159.8,2159.1,0.001]
[1772650318839,0.5066866,2159.7,2158.9,0.001]
[1772650319005,0.5066866,2159.5,2158.9,0.001]
[1772650319727,1.15772899,2159.4,2158.9,0.001]
[1772650319928,0.5066866,2159.3,2158.9,0.001]
[1772650322037,0.5066866,2159.1,2158.9,0.001]
[1772650323742,0.5066866,2159.1,2158.7,0.001]
[1772650324047,1.15794349,2159.0,2158.7,0.001]
[1772650324343,1.66463009,2159.0,2158.7,0.001]
[1772650324842,6.33,2159.5,2158.7,0.24276735]
[1772650325027,7.48768284,2159.5,2158.7,0.24276735]
[1772650325545,1.15768284,2159.5,2158.7,0.24276735]
[1772650326149,4.63064058,2159.6,2158.8,1.15805076]
[1772650327126,0.5066866,2159.5,2158.7,0.001]
[1772650328042,0.5066866,2159.3,2158.7,0.001]
[1772650328647,0.5066866,2159.2,2158.7,0.001]
[1772650330137,1.15788986,2159.1,2158.7,0.001]
[1772650330944,0.5066866,2159.2,2158.7,0.001]
[1772650331249,0.002,2159.1,2158.7,0.001]
[1772650331464,0.5066866,2159.0,2158.7,0.001]
[1772650332133,1.15797769,2159.0,2158.7,0.001]
[1772650332336,0.002,2159.1,2158.7,0.001]
[1772650332538,0.002,2159.3,2158.7,0.23921394]
[1772650334132,0.002,2159.3,2158.8,1.3951906]
[1772650334329,0.002,2159.3,2158.9,0.23713984]
[1772650335436,0.002,2159.6,2159.0,0.23661202]
[1772650336430,0.004,2159.6,2158.8,1.41309027]
[1772650336627,0.004,2159.6,2158.9,4.63185826]
[1772650337056,0.004,2159.6,2158.9,4.86743277]
[1772650338131,0.004,2159.6,2158.9,4.63185826]
[1772650338331,0.49951199,2159.6,2158.9,1.15799712]
[1772650338535,1.6571772,2159.6,2158.9,1.15799712]
[1772650339658,0.49751199,2159.6,2158.9,1.15799712]
[1772650339954,0.002,2159.6,2158.9,1.39205961]
[1772650341741,0.002,2159.5,2159.0,0.23308321]
[1772650342141,0.49751199,2159.5,2158.9,1.15799301]
[1772650342341,0.49751199,2159.5,2158.8,1.177]
[1772650342662,0.49551199,2159.4,2158.8,2.33504878]
[1772650342852,0.49551199,2159.4,2158.8,1.177]
[1772650343449,0.002,2159.3,2158.8,2.33503243]
[1772650344068,0.002,2159.3,2158.8,1.177]
[1772650344267,0.002,2159.3,2158.8,2.33504394]
[1772650344445,0.49751199,2159.2,2158.7,0.001]
[1772650344765,1.15788986,2159.1,2158.7,0.001]
[1772650345267,1.65340185,2159.1,2158.9,0.001]
[1772650345941,0.49551199,2159.1,2158.9,0.001]
[1772650346770,0.002,2159.4,2158.9,0.001]
[1772650346972,0.002,2159.3,2158.9,0.001]
[1772650347561,0.002,2159.2,2158.9,0.001]
[1772650349467,0.002,2159.4,2158.9,0.001]
[1772650349670,0.002,2159.3,2158.9,0.001]
[1772650349960,0.002,2159.4,2158.9,0.23094595]
[1772650350468,0.002,2159.4,2158.9,1.40894595]
[1772650351344,0.002,2159.4,2159.0,1.15794349]
[1772650352054,0.002,2159.4,2158.9,2.3369556]
[1772650352660,0.51644405,2159.4,2158.9,2.3369556]
[1772650353463,0.51444405,2159.2,2158.9,1.179]
[1772650354344,0.51444405,2159.2,2158.9,0.001]
[1772650355772,1.67233391,2159.1,2158.9,0.001]
[1772650356276,0.51444405,2159.0,2158.9,0.001]
[1772650356482,0.51444405,2159.0,2158.7,0.001]
[1772650357781,4.63350435,2159.2,2158.9,0.001]
[1772650357782,0.002,2159.2,2158.9,0.001]
[1772650364064,0.002,2159.4,2158.9,0.22430725]
[1772650366170,0.002,2159.4,2159.0,1.15794349]
[1772650369997,0.002,2159.4,2159.2,0.001]
[1772650374023,0.002,2159.6,2159.2,0.001]
[1772650378000,0.47427272,2159.6,2159.2,0.001]
[1772650378203,0.46127152,2159.6,2159.2,0.001]
[1772650378381,0.44827032,2159.6,2159.2,0.001]
[1772650378590,0.43526912,2159.6,2159.2,0.001]
[1772650378906,0.37676372,2159.6,2159.2,0.001]
[1772650379102,0.32475892,2159.6,2159.2,0.001]
[1772650379303,0.31175772,2159.6,2159.2,0.001]
[1772650379489,0.28575532,2159.6,2159.2,0.001]
[1772650379806,0.27275412,2159.6,2159.2,0.001]
[1772650379989,0.24675172,2159.6,2159.2,0.001]
[1772650380192,0.23375052,2159.6,2159.2,0.001]
[1772650380507,0.20774812,2159.6,2159.2,0.001]
[1772650380806,4.62974234,2160.0,2159.2,0.001]
[1772650380807,0.49177452,2160.0,2159.2,0.494313]
[1772650381007,0.49177452,2160.0,2159.3,0.5396243]
[1772650381207,0.49177452,2160.0,2159.5,0.493313]
[1772650381408,6.82177452,2160.2,2159.5,0.493313]
[1772650382205,6.82177452,2160.2,2159.6,1.15762178]
[1772650382586,0.002,2159.9,2159.6,1.65093478]
[1772650384707,0.002,2159.9,2159.6,1.15762178]
[1772650384909,0.49377452,2159.9,2159.6,1.15762178]
[1772650386512,0.002,2159.9,2159.6,0.493313]
[1772650386702,0.49177452,2160.3,2159.6,0.493313]
[1772650386904,1.64903149,2160.3,2159.6,0.493313]
[1772650387290,0.49177452,2160.3,2159.6,0.493313]
[1772650388317,0.80071976,2160.5,2159.8,0.493313]
[1772650388509,0.49177452,2160.5,2159.8,0.493313]
[1772650388705,0.49177452,2160.4,2159.8,0.493313]
[1772650390218,0.49177452,2160.6,2160.0,0.493313]
[1772650390416,0.49177452,2160.6,2160.1,1.15735382]
[1772650390614,0.49177452,2160.8,2160.2,0.493313]
[1772650391517,0.49177452,2160.8,2159.9,5.81967207]
[1772650391518,0.49177452,2160.8,2159.9,1.15746099]
[1772650391719,0.49177452,2160.8,2159.9,2.34846099]
[1772650393418,0.09177452,2160.6,2159.9,2.34846099]
[1772650394425,0.09177452,2160.6,2159.9,2.84177399]
[1772650394721,0.09377452,2160.6,2159.9,2.84177399]
[1772650395305,1.25090243,2160.6,2160.0,1.65066856]
[1772650395623,0.002,2161.1,2160.2,0.493313]
[1772650395795,0.49177452,2161.8,2160.8,0.493313]
[1772650395990,0.49177452,2161.8,2161.0,0.493313]
[1772650396207,0.49177452,2161.8,2161.1,1.192]
[1772650396718,0.30033344,2161.4,2161.1,1.685313]
[1772650397126,0.49177452,2162.1,2161.2,0.493313]
[1772650397425,1.64805909,2162.1,2161.3,1.65002423]
[1772650397622,1.64807611,2162.1,2161.4,0.493313]
[1772650398120,0.49177452,2162.0,2161.3,1.65002423]
[1772650398997,1.15626579,2162.2,2161.4,0.50028434]
[1772650399213,0.46888538,2162.3,2161.4,0.50028434]